fUSD/lending_fUSD_20260218
["ID","MTS","AMOUNT","RATE_DAILY","PERIOD"]
[405953916,1771443052079,-395.01875047,0.00018,2]
[405953917,1771443052090,-1783.13748686,0.00018,2]
[405953918,1771443052101,-54952.18288911,0.00018,2]
[405953919,1771443052113,-4293.562872,0.00018,2]
[405953923,1771444006106,-200.0,7.44e-05,2]
[405953924,1771444006128,-76.71941884,7.61e-05,2]
[405953934,1771444232043,-343.29292514,7.35e-05,2]
[405953935,1771444232055,-156.70707486,7.35e-05,2]
[405953936,1771444232064,-169.32464806,7.35e-05,2]
[405953937,1771444232080,-42.67535194,7.35e-05,2]
[405953938,1771444232091,-224.702,7.479e-05,2]
[405953939,1771444232151,-25.298,7.479e-05,2]
[405953940,1771444232163,-801.78673548,7.512e-05,2]
[405953941,1771444232234,-482.13,7.512e-05,2]
[405953942,1771444232247,-5952.13234808,7.512e-05,2]
[405953943,1771444232283,-706.82415317,7.512e-05,2]
[405953944,1771444232295,-856.52330817,7.512e-05,2]
[405953945,1771444232323,-1309.68764366,7.512e-05,2]
[405953946,1771444232334,-271.1314,7.512e-05,2]
[405953947,1771444232346,-26308.15012849,7.512e-05,2]
[405953970,1771444238137,-471.87366345,7.512e-05,2]
[405953971,1771444238195,-509.0,7.512e-05,2]
[405953972,1771444238207,-6098.99305834,7.512e-05,2]
[405953973,1771444238219,-24727.0973857,7.512e-05,2]
[405953974,1771444238230,-1254.39983404,7.512e-05,2]
[405953975,1771444238247,-331.43,7.512e-05,2]
[405953976,1771444238352,-65999.99999987,7.512e-05,2]
[405953977,1771444238365,-670.10000021,7.512e-05,2]
[405953989,1771444240460,-1741.24,7.512e-05,2]
[405953990,1771444240514,-727.001,7.512e-05,2]
[405953991,1771444240525,-670.59943,7.512e-05,2]
[405953992,1771444240539,-277.1987,7.512e-05,2]
[405954016,1771444243920,-4061.90121113,7.512e-05,2]
[405954017,1771444243931,-594.78302887,7.512e-05,2]
[405954018,1771444243943,-1059.811586,7.512e-05,2]
[405954019,1771444243954,-1365.94,7.512e-05,2]
[405954020,1771444244759,-925.52068142,7.512e-05,2]
[405954021,1771444244770,-330.235,7.512e-05,2]
[405954022,1771444244782,-443.4506406,7.512e-05,2]
[405954023,1771444245648,-4657.68428403,7.512e-05,2]
[405954024,1771444245699,-30.74660212,7.512e-05,2]
[405954026,1771444246069,-3270.2,7.512e-05,2]
[405954027,1771444246083,-600.0,7.512e-05,2]
[405954028,1771444246227,-387.22,7.512e-05,2]
[405954029,1771444246282,-3865.61854888,7.512e-05,2]
[405954030,1771444246336,-653.6655676,7.512e-05,2]
[405954032,1771444453273,-3749.391,7.361e-05,2]
[405954033,1771444453305,-246.326,7.361e-05,2]
[405954034,1771444453339,-150.0,7.484e-05,2]
[405954035,1771444473030,500.0,7.269e-05,2]
[405954036,1771444504703,-350.0,7.51e-05,2]
[405954037,1771444504730,-300.0,7.51e-05,2]
[405954038,1771444504758,-300.0,7.51e-05,2]
[405954039,1771444504787,-1200.0,7.51e-05,2]
[405954040,1771444504815,-300.0,7.51e-05,2]
[405954041,1771444504847,-500.0,7.511e-05,2]
[405954042,1771444504884,-500.0,7.511e-05,2]
[405954043,1771444504916,-500.0,7.511e-05,2]
[405954044,1771444504948,-500.0,7.511e-05,2]
[405954045,1771444504980,-500.0,7.511e-05,2]
[405954046,1771444505011,-500.0,7.511e-05,2]
[405954047,1771444505043,-500.0,7.511e-05,2]
[405954048,1771444505075,-500.0,7.511e-05,2]
[405954049,1771444505109,-500.0,7.511e-05,2]
[405954050,1771444505141,-500.0,7.511e-05,2]
[405954051,1771444505173,-500.0,7.511e-05,2]
[405954052,1771444505205,-500.0,7.511e-05,2]
[405954053,1771444505235,-500.0,7.511e-05,2]
[405954054,1771444505266,-500.0,7.511e-05,2]
[405954055,1771444505297,-500.0,7.511e-05,2]
[405954056,1771444505328,-500.0,7.511e-05,2]
[405954057,1771444532936,-157.0,7.269e-05,3]
[405954058,1771444532970,-306.0,7.269e-05,3]
[405954059,1771444533003,-150.0,7.269e-05,3]
[405954060,1771444533159,-25269.03854975,7.411e-05,2]
[405954061,1771444549159,-30000.0,7.411e-05,2]
[405954062,1771444569371,-300.0,7.41e-05,2]
[405954063,1771444569405,-29400.0,7.411e-05,2]
[405954064,1771444594513,-500.0,7.41e-05,2]
[405954065,1771444594544,-500.0,7.41e-05,2]
[405954066,1771444594577,-500.0,7.41e-05,2]
[405954067,1771444594609,-500.0,7.41e-05,2]
[405954068,1771444594639,-500.0,7.41e-05,2]
[405954069,1771444594679,-500.0,7.41e-05,2]
[405954070,1771444594712,-500.0,7.41e-05,2]
[405954071,1771444594744,-500.0,7.41e-05,2]
[405954072,1771444594778,-500.0,7.41e-05,2]
[405954073,1771444594811,-500.0,7.41e-05,2]
[405954074,1771444594843,-500.0,7.41e-05,2]
[405954075,1771444594874,-500.0,7.41e-05,2]
[405954076,1771444594908,-500.0,7.41e-05,2]
[405954077,1771444594941,-500.0,7.41e-05,2]
[405954078,1771444594971,-500.0,7.41e-05,2]
[405954079,1771444595001,-500.0,7.41e-05,2]
[405954080,1771444595039,-266.06187024,7.41e-05,2]
[405954081,1771444595070,-500.0,7.41e-05,2]
[405954082,1771444595104,-500.0,7.41e-05,2]
[405954083,1771444595135,-500.0,7.41e-05,2]
[405954084,1771444595590,-500.0,7.41e-05,2]
[405954085,1771444595600,-500.0,7.41e-05,2]
[405954086,1771444595610,-500.0,7.41e-05,2]
[405954087,1771444595620,-500.0,7.41e-05,2]
[405954088,1771444595629,-500.0,7.41e-05,2]
[405954089,1771444595639,-500.0,7.41e-05,2]
[405954090,1771444595651,-500.0,7.41e-05,2]
[405954091,1771444595661,-500.0,7.41e-05,2]
[405954092,1771444595671,-500.0,7.41e-05,2]
[405954093,1771444595680,-5967.87625952,7.411e-05,2]
[405954094,1771444610863,150.0,0.00011233,120]
[405954095,1771444750088,202.98,6.177e-05,2]
[405954096,1771444750313,202.98,6.234e-05,2]
[405954097,1771444750517,202.98,6.292e-05,2]
[405954098,1771444750710,202.98,6.349e-05,2]
[405954099,1771444750931,202.98,6.406e-05,2]
[405954100,1771444751118,202.98,6.464e-05,2]
[405954101,1771444809608,290.0,6.464e-05,3]
[405954102,1771444811424,156.0,6.464e-05,3]
[405954103,1771444816660,151.0,6.464e-05,3]
[405954104,1771444868744,276.0,6.464e-05,3]
[405954105,1771444875451,151.0,6.464e-05,3]
[405954109,1771444927460,262.0,6.464e-05,3]
[405954110,1771444934139,151.0,6.464e-05,3]
[405954111,1771444985299,249.0,6.464e-05,3]
[405954112,1771444992168,151.0,6.464e-05,3]
[405954113,1771445044879,236.0,6.464e-05,3]
[405954114,1771445104468,156.0,6.464e-05,3]
[405954115,1771445112181,225.0,6.464e-05,3]
[405954116,1771445166483,213.0,6.464e-05,3]
[405954117,1771445231101,203.0,6.464e-05,3]
[405954118,1771445287707,193.0,6.464e-05,3]
[405954119,1771445348743,183.0,6.464e-05,3]
[405954120,1771445364171,1600.0,6.169e-05,2]
[405954121,1771445409248,174.0,6.464e-05,3]
[405954122,1771445409702,156.0,6.464e-05,3]
[405954128,1771445432281,-207.0,6.521e-05,2]
[405954129,1771445432292,-202.98,6.521e-05,2]
[405954130,1771445432301,-151.0,6.574e-05,3]
[405954131,1771445432312,-202.98,6.578e-05,2]
[405954132,1771445432322,-300.0,6.6e-05,2]
[405954133,1771445432331,-202.98,6.636e-05,2]
[405954134,1771445432340,-202.98,6.693e-05,2]
[405954135,1771445432349,-700.0,6.7e-05,2]
[405954136,1771445432358,-202.98,6.751e-05,2]
[405954137,1771445432370,-1100.0,6.8e-05,2]
[405954138,1771445432379,-202.98,6.808e-05,2]
[405954139,1771445432389,-202.98,6.865e-05,2]
[405954140,1771445432398,-1500.0,6.9e-05,2]
[405954141,1771445432408,-202.98,6.923e-05,2]
[405954142,1771445432417,-1600.0,6.94e-05,2]
[405954143,1771445432427,-202.98,6.98e-05,2]
[405954144,1771445432436,-1200.0,6.999e-05,2]
[405954145,1771445432445,-1800.0,7e-05,2]
[405954146,1771445432454,-202.98,7.037e-05,2]
[405954147,1771445432463,-202.98,7.095e-05,2]
[405954148,1771445432473,-202.98,7.152e-05,2]
[405954149,1771445432483,-300.0,7.171e-05,2]
[405954150,1771445432492,-300.0,7.172e-05,2]
[405954151,1771445432501,-300.0,7.172e-05,2]
[405954152,1771445432510,-250.0,7.173e-05,2]
[405954153,1771445432520,-250.0,7.173e-05,2]
[405954154,1771445432530,-250.0,7.173e-05,2]
[405954155,1771445432539,-202.98,7.21e-05,2]
[405954156,1771445432549,-202.98,7.267e-05,2]
[405954157,1771445432559,-174.0,7.282e-05,3]
[405954158,1771445432568,-55669.53852864,7.291e-05,2]
[405954159,1771445432578,-500.0,7.3e-05,2]
[405954160,1771445432587,-500.0,7.3e-05,2]
[405954161,1771445432597,-500.0,7.3e-05,2]
[405954162,1771445432606,-426.60618703,7.3e-05,2]
[405954163,1771445432615,-193.81651923,7.3e-05,2]
[405954164,1771445432625,-500.0,7.3e-05,2]
[405954165,1771445432634,-283.8487529,7.3e-05,2]
[405954166,1771445432643,-575.78845239,7.3e-05,2]
[405954167,1771445432652,-150.0,7.3e-05,2]
[405954168,1771445432662,-34807.23837725,7.301e-05,2]
[405954169,1771445432674,-258.656489,7.301e-05,2]
[405954170,1771445432684,-632.866641,7.301e-05,2]
[405954171,1771445432695,-787.27893922,7.301e-05,2]
[405954172,1771445432707,-3443.1,7.301e-05,2]
[405954173,1771445432718,-3954.798,7.301e-05,2]
[405954174,1771445432729,-6070.91905451,7.301e-05,2]
[405954175,1771445432740,-5880.0,7.301e-05,2]
[405954176,1771445432751,-1300.0,7.301e-05,2]
[405954177,1771445432762,-3250.0,7.301e-05,2]
[405954178,1771445432774,-1232.32958992,7.301e-05,2]
[405954183,1771445438350,-257.14460464,7.301e-05,2]
[405954184,1771445438362,-1583.53603552,7.301e-05,2]
[405954185,1771445438510,-6909.79999999,7.301e-05,2]
[405954244,1771445440645,-482.25934277,7.301e-05,2]
[405954245,1771445440713,-28050.06744856,7.301e-05,2]
[405954246,1771445440730,-1144.97637483,7.301e-05,2]
[405954247,1771445440755,-2244.0,7.301e-05,2]
[405954267,1771445444436,-4044.36876239,7.301e-05,2]
[405954268,1771445444448,-494.6303,7.301e-05,2]
[405954272,1771445446329,-17735.42355362,7.301e-05,2]
[405954285,1771445887938,-2999.512,6.932e-05,2]
[405954286,1771445887963,-197.061,6.932e-05,2]
[405954287,1771445887991,-280.0,6.972e-05,2]
[405954288,1771445888023,-150.0,6.972e-05,2]
[405954289,1771445888053,-548.69412703,6.972e-05,2]
[405954290,1771445888081,-403.05191667,6.972e-05,2]
[405954291,1771445888114,-214.06735411,6.972e-05,2]
[405954292,1771446002809,-300.0,6.972e-05,2]
[405954293,1771446002840,-189.0,6.972e-05,2]
[405954294,1771446002869,-1200.0,6.972e-05,2]
[405954295,1771446003116,-282.13634167,6.972e-05,2]
[405954296,1771446003147,-384.08588892,6.972e-05,2]
[405954297,1771446003284,-32289.55553882,6.973e-05,2]
[405954298,1771446274178,-2399.61,6.736e-05,2]
[405954299,1771446274205,-157.648,6.736e-05,2]
[405954300,1771446274232,-250.0,6.805e-05,2]
[405954301,1771446274264,-300.0,6.872e-05,2]
[405954302,1771446274293,-150.0,6.872e-05,2]
[405954303,1771446274322,-197.49543917,6.872e-05,2]
[405954304,1771446274419,-43090.49312166,6.873e-05,2]
[405954305,1771446512063,1273.65770262,6.526e-05,2]
[405954306,1771446512092,3726.35229738,6.526e-05,2]
[405954307,1771446512111,1738.34220066,6.526e-05,2]
[405954308,1771446512142,3261.66779934,6.526e-05,2]
[405954309,1771446512165,4322.3817612,6.526e-05,2]
[405954310,1771446512195,622.42612878,6.526e-05,2]
[405954311,1771446534560,-500.0,6.641e-05,2]
[405954312,1771446534592,-1852.42,6.693e-05,2]
[405954313,1771446534623,-251.69343799,6.746e-05,2]
[405954314,1771446534656,-150.0,6.772e-05,2]
[405954315,1771446534689,-250.0,6.773e-05,2]
[405954316,1771446534721,-151.0,6.773e-05,3]
[405954317,1771446534844,-23689.77312402,6.773e-05,2]
[405954318,1771446623054,-300.0,6.563e-05,2]
[405954319,1771446623082,-1200.0,6.563e-05,2]
[405954320,1771446623109,-189.0,6.563e-05,2]
[405954321,1771446623136,-18415.96,6.564e-05,2]
[405954322,1771446623200,-14790.08,6.564e-05,2]
[405954327,1771446631391,-207.0,6.564e-05,2]
[405954329,1771446631400,-200.0,6.755e-05,2]
[405954331,1771446631410,-150.0,6.771e-05,2]
[405954333,1771446631419,-500.0,6.772e-05,2]
[405954334,1771446631429,-500.0,6.772e-05,2]
[405954335,1771446631438,-500.0,6.772e-05,2]
[405954336,1771446631448,-500.0,6.772e-05,2]
[405954337,1771446631458,-500.0,6.772e-05,2]
[405954338,1771446631467,-339.45568322,6.772e-05,2]
[405954339,1771446631477,-500.0,6.772e-05,2]
[405954340,1771446631487,-500.0,6.772e-05,2]
[405954341,1771446631497,-500.0,6.772e-05,2]
[405954342,1771446631506,-500.0,6.772e-05,2]
[405954343,1771446631516,-500.0,6.772e-05,2]
[405954344,1771446631526,-500.0,6.772e-05,2]
[405954345,1771446631537,-500.0,6.772e-05,2]
[405954346,1771446631547,-500.0,6.772e-05,2]
[405954347,1771446631557,-500.0,6.772e-05,2]
[405954348,1771446631566,-500.0,6.772e-05,2]
[405954349,1771446631575,-500.0,6.772e-05,2]
[405954350,1771446631584,-500.0,6.772e-05,2]
[405954351,1771446631593,-500.0,6.772e-05,2]
[405954352,1771446631602,-500.0,6.772e-05,2]
[405954353,1771446631611,-500.0,6.772e-05,2]
[405954354,1771446631620,-500.0,6.772e-05,2]
[405954355,1771446631629,-500.0,6.772e-05,2]
[405954356,1771446631640,-500.0,6.772e-05,2]
[405954357,1771446631650,-500.0,6.772e-05,2]
[405954358,1771446631661,-500.0,6.772e-05,2]
[405954360,1771446631670,-3476310.22687598,6.773e-05,2]
[405954361,1771446631679,-3851.07048786,6.872e-05,2]
[405954363,1771446631689,-156.0,6.873e-05,3]
[405954365,1771446631698,-156.0,6.873e-05,3]
[405954367,1771446631707,-170.0,7.041e-05,2]
[405954369,1771446631716,-1500.0,7.076e-05,2]
[405954371,1771446631725,-15552.5374664,7.1e-05,2]
[405954373,1771446631734,-1680.0,7.219e-05,2]
[405954375,1771446631743,-420.0,7.219e-05,2]
[405954377,1771446631752,-250.0,7.22e-05,2]
[405954379,1771446631761,-69588.60070308,7.24e-05,2]
[405954382,1771446631773,-582.91168728,7.24e-05,2]
[405954384,1771446631784,-1112.11785737,7.24e-05,2]
[405954386,1771446631794,-8468.90313193,7.24e-05,2]
[405954387,1771446631813,-1486.1952,7.24e-05,2]
[405954409,1771446637508,-500.0,7.24e-05,2]
[405954410,1771446637674,-1383.16954307,7.24e-05,2]
[405954412,1771446643033,-715182.29888077,7.24e-05,2]
[405954413,1771446643043,-47135.8220756,7.24e-05,2]
[405954414,1771446643052,-1892.0,7.37e-05,2]
[405954415,1771446643062,-270.0,7.37e-05,2]
[405954416,1771446643072,-799.0,7.37e-05,2]
[405954417,1771446643081,-155.0,7.437e-05,2]
[405954418,1771446643091,-250.0,7.449e-05,2]
[405954419,1771446643100,-1004.24833384,7.511e-05,2]
[405954420,1771446643109,-250.0,7.531e-05,2]
[405954421,1771446643118,-885.56,7.541e-05,2]
[405954422,1771446643127,-156.0,7.669e-05,3]
[405954423,1771446643137,-1600.0,7.711e-05,2]
[405954424,1771446643147,-166.66,7.767e-05,2]
[405954425,1771446643156,-300.0,7.889e-05,2]
[405954426,1771446643165,-2351.0,7.941e-05,2]
[405954427,1771446643174,-587.0,7.941e-05,2]
[405954428,1771446643187,-250.0,7.971e-05,2]
[405954430,1771446643196,-1000.0,8e-05,2]
[405954431,1771446643206,-166.66,8.024e-05,2]
[405954433,1771446643215,-1332.34504,8.178e-05,2]
[405954435,1771446643224,-155.0,8.181e-05,2]
[405954439,1771446643234,-1000.0,8.219e-05,2]
[405954442,1771446643243,-394.45999999,8.219e-05,2]
[405954445,1771446643253,-166.66,8.28e-05,2]
[405954446,1771446643265,-3470.2401755,8.36e-05,2]
[405954447,1771446643274,-156.0,8.386e-05,3]
[405954448,1771446643502,-156.0,8.465e-05,3]
[405954449,1771446643513,-1600.0,8.483e-05,2]
[405954450,1771446643524,-166.66,8.537e-05,2]
[405954451,1771446643534,-774.3152461,8.641e-05,2]
[405954452,1771446643545,-823.0,8.735e-05,2]
[405954453,1771446643557,-1442.0,8.735e-05,2]
[405954454,1771446643566,-166.66,8.793e-05,2]
[405954455,1771446643575,-178125.7433245,8.832e-05,2]
[405954456,1771446643586,-10517.4235284,8.832e-05,2]
[405954457,1771446643595,-151.0,8.832e-05,2]
[405954458,1771446643605,-151.0,8.832e-05,2]
[405954459,1771446643615,-151.0,8.832e-05,2]
[405954460,1771446643628,-151.0,8.832e-05,2]
[405954461,1771446643638,-155.0,8.924e-05,2]
[405954462,1771446643647,-166.66,9.049e-05,2]
[405954463,1771446643657,-39745.2256345,9.187e-05,2]
[405954464,1771446643666,-2346.7543962,9.187e-05,2]
[405954465,1771446643676,-1000.0,9.247e-05,2]
[405954466,1771446643687,-1600.0,9.254e-05,2]
[405954467,1771446643697,-156.0,9.261e-05,3]
[405954468,1771446643706,-1152.0,9.609e-05,2]
[405954469,1771446643715,-1513.22,9.67e-05,2]
[405954470,1771446643725,-156.0,9.898e-05,3]
[405954471,1771446643734,-1000.0,0.0001,2]
[405954472,1771446643744,-277.73343163,0.0001,2]
[405954473,1771446643754,-161.40914362,0.0001,2]
[405954474,1771446643764,-151.0,0.0001,2]
[405954475,1771446643774,-151.0,0.0001,2]
[405954476,1771446643784,-151.0,0.0001,2]
[405954477,1771446643793,-151.0,0.0001,2]
[405954478,1771446643803,-151.0,0.0001,2]
[405954479,1771446643814,-151.0,0.0001,2]
[405954480,1771446643825,-151.0,0.0001,2]
[405954481,1771446643835,-151.0,0.0001,2]
[405954482,1771446643846,-151.0,0.0001,2]
[405954483,1771446643856,-151.0,0.0001,2]
[405954484,1771446643866,-151.0,0.0001,2]
[405954485,1771446643875,-151.0,0.0001,2]
[405954486,1771446643885,-151.0,0.0001,2]
[405954487,1771446643895,-151.0,0.0001,2]
[405954488,1771446643905,-151.0,0.0001,2]
[405954489,1771446643915,-151.0,0.0001,2]
[405954490,1771446643924,-151.0,0.0001,2]
[405954491,1771446643933,-151.0,0.0001,2]
[405954492,1771446643942,-500.0,0.0001,2]
[405954493,1771446643952,-151.0,0.0001,2]
[405954494,1771446643961,-151.0,0.0001,2]
[405954495,1771446643970,-500.0,0.0001,2]
[405954496,1771446643979,-151.0,0.0001,2]
[405954497,1771446643989,-151.0,0.0001,2]
[405954498,1771446643998,-500.0,0.0001,2]
[405954499,1771446644011,-151.0,0.0001,2]
[405954500,1771446644022,-151.0,0.0001,2]
[405954501,1771446644031,-500.0,0.0001,2]
[405954502,1771446644040,-151.0,0.0001,2]
[405954503,1771446644050,-151.0,0.0001,2]
[405954504,1771446644059,-500.0,0.0001,2]
[405954505,1771446644068,-151.0,0.0001,2]
[405954506,1771446644078,-500.0,0.0001,2]
[405954507,1771446644087,-151.0,0.0001,2]
[405954508,1771446644097,-500.0,0.0001,2]
[405954509,1771446644106,-151.0,0.0001,2]
[405954510,1771446644116,-500.0,0.0001,2]
[405954511,1771446644126,-151.0,0.0001,2]
[405954512,1771446644135,-500.0,0.0001,2]
[405954513,1771446644144,-151.0,0.0001,2]
[405954514,1771446644154,-500.0,0.0001,2]
[405954515,1771446644163,-500.0,0.0001,2]
[405954516,1771446644172,-500.0,0.0001,2]
[405954517,1771446644182,-500.0,0.0001,2]
[405954518,1771446644194,-500.0,0.0001,2]
[405954519,1771446644204,-500.0,0.0001,2]
[405954520,1771446644214,-500.0,0.0001,2]
[405954521,1771446644223,-500.0,0.0001,2]
[405954522,1771446644233,-500.0,0.0001,2]
[405954523,1771446644243,-500.0,0.0001,2]
[405954524,1771446644253,-500.0,0.0001,2]
[405954525,1771446644264,-500.0,0.0001,2]
[405954526,1771446644273,-500.0,0.0001,2]
[405954527,1771446644282,-753.28521143,0.0001,2]
[405954528,1771446644292,-156.0,0.00010058,3]
[405954529,1771446644301,-1000.0,0.00010274,2]
[405954530,1771446644311,-155.0,0.00010412,2]
[405954531,1771446644321,-9999.99,0.00010475,2]
[405954532,1771446644338,-150.99,0.00010475,2]
[405954533,1771446644349,-1613.0,0.0001057,2]
[405954534,1771446644360,-156.0,0.00010854,3]
[405954535,1771446644374,-150.0,0.00010959,2]
[405954536,1771446644387,-150.0,0.00010959,2]
[405954537,1771446644397,-166.66,0.00010959,2]
[405954538,1771446644406,-14906.89,0.00010959,2]
[405954539,1771446644419,-166.66,0.00011068,2]
[405954540,1771446644428,-340.00422921,0.00011099,2]
[405954541,1771446644438,-340.0042292,0.00011099,2]
[405954542,1771446644448,-340.0042292,0.00011099,2]
[405954543,1771446644457,-340.0042292,0.00011099,2]
[405954544,1771446644467,-340.0042292,0.00011099,2]
[405954545,1771446644478,-41155.84305184,0.00011099,2]
[405954546,1771446644487,-41155.84305179,0.00011099,2]
[405954547,1771446644496,-41155.84305179,0.00011099,2]
[405954548,1771446644506,-41155.84305179,0.00011099,2]
[405954549,1771446644515,-151.0,0.00011099,2]
[405954550,1771446644525,-151.0,0.00011099,2]
[405954551,1771446644534,-151.0,0.00011099,2]
[405954552,1771446644544,-166.66,0.00011178,2]
[405954553,1771446644554,-150.0,0.00011233,2]
[405954554,1771446644563,-11547.4,0.00011233,2]
[405954555,1771446644574,-200.0,0.00011233,2]
[405954556,1771446644585,-200.0,0.00011233,2]
[405954557,1771446644595,-200.0,0.00011233,2]
[405954558,1771446644605,-200.0,0.00011233,2]
[405954559,1771446644625,-166.66,0.00011288,2]
[405954560,1771446644647,-1000.0,0.00011301,2]
[405954561,1771446644657,-200.0,0.00011345,2]
[405954562,1771446644667,-200.0,0.00011345,2]
[405954563,1771446644677,-200.0,0.00011345,2]
[405954564,1771446644687,-200.0,0.00011345,2]
[405954565,1771446644698,-166.66,0.00011397,2]
[405954566,1771446644709,-156.0,0.00011411,3]
[405954567,1771446644720,-200.0,0.00011459,2]
[405954568,1771446644729,-200.0,0.00011459,2]
[405954569,1771446644740,-200.0,0.00011459,2]
[405954570,1771446644750,-200.0,0.00011459,2]
[405954571,1771446644760,-166.66,0.00011507,2]
[405954572,1771446644770,-200.0,0.00011573,2]
[405954573,1771446644781,-200.0,0.00011573,2]
[405954574,1771446644791,-200.0,0.00011573,2]
[405954575,1771446644801,-200.0,0.00011573,2]
[405954576,1771446644813,-2258.0,0.00011627,2]
[405954577,1771446644823,-156.0,0.0001165,3]
[405954578,1771446644834,-200.0,0.00011689,2]
[405954579,1771446644844,-200.0,0.00011689,2]
[405954580,1771446644854,-200.0,0.00011689,2]
[405954581,1771446644863,-200.0,0.00011689,2]
[405954582,1771446644874,-41155.84305179,0.00011733,2]
[405954583,1771446644883,-340.0042292,0.00012054,2]
[405954584,1771446644892,-753.28521143,0.00012323,2]
[405954585,1771446644902,-1000.0,0.00012329,2]
[405954586,1771446644912,-3851.07048785,0.00012336,2]
[405954587,1771446644923,-156.0,0.00012446,3]
[405954588,1771446644935,-156.0,0.00012924,3]
[405954589,1771446644946,-500.0,0.0001294,2]
[405954590,1771446644956,-500.0,0.0001294,2]
[405954591,1771446644965,-500.0,0.0001294,2]
[405954592,1771446644975,-500.0,0.0001294,2]
[405954593,1771446644986,-500.0,0.0001294,2]
[405954594,1771446644997,-500.0,0.0001294,2]
[405954595,1771446645006,-500.0,0.0001294,2]
[405954596,1771446645017,-500.0,0.0001294,2]
[405954597,1771446645027,-500.0,0.0001294,2]
[405954598,1771446645036,-500.0,0.0001294,2]
[405954599,1771446645046,-500.0,0.0001294,2]
[405954600,1771446645055,-500.0,0.0001294,2]
[405954601,1771446645064,-500.0,0.0001294,2]
[405954602,1771446645074,-500.0,0.0001294,2]
[405954603,1771446645084,-500.0,0.0001294,2]
[405954604,1771446645096,-500.0,0.0001294,2]
[405954605,1771446645106,-500.0,0.0001294,2]
[405954606,1771446645116,-500.0,0.0001294,2]
[405954607,1771446645126,-500.0,0.0001294,2]
[405954608,1771446645135,-500.0,0.0001294,2]
[405954609,1771446645145,-693.3919763,0.0001294,2]
[405954610,1771446645156,-578.20924308,0.0001294,2]
[405954611,1771446645166,-174.61919141,0.0001294,2]
[405954612,1771446645176,-277.35679052,0.0001294,2]
[405954613,1771446645186,-41155.84305179,0.00012967,2]
[405954614,1771446645199,-719.04747942,0.00012995,2]
[405954615,1771446645209,-745.65223616,0.0001305,2]
[405954616,1771446645227,-773.2413689,0.00013105,2]
[405954617,1771446645239,-340.0042292,0.00013115,2]
[405954618,1771446645249,-801.85129955,0.0001316,2]
[405954619,1771446645258,-831.51979763,0.00013215,2]
[405954620,1771446645270,-156.0,0.00013242,3]
[405954621,1771446645279,-862.28603014,0.0001327,2]
[405954622,1771446645289,-894.19061326,0.00013325,2]
[405954623,1771446645299,-927.27566595,0.0001338,2]
[405954624,1771446645308,-155.0,0.00013387,2]
[405954625,1771446645319,-3240.0,0.00013425,2]
[405954627,1771446645328,-961.58486559,0.00013435,2]
[405954629,1771446645338,-309.21442929,0.00013488,2]
[405954630,1771446645347,-362.65986097,0.00013488,2]
[405954631,1771446645356,-997.16350561,0.0001349,2]
[405954632,1771446645366,-500.0,0.00013698,2]
[405954633,1771446645376,-200.0,0.00013699,2]
[405954634,1771446645388,-1000.0,0.00013699,7]
[405954635,1771446645398,-1338.0,0.00013773,2]
[405954636,1771446645407,-173.62051493,0.00013789,2]
[405954637,1771446645415,-160.0,0.00013802,2]
[405954638,1771446645423,-156.0,0.00014038,3]
[405954639,1771446645432,-211.416485,0.00014078,7]
[405954640,1771446645442,-340.0042292,0.00014177,2]
[405954641,1771446645454,-41155.84305179,0.000142,2]
[405954642,1771446645464,-151.0,0.000142,2]
[405954643,1771446645475,-151.0,0.000142,2]
[405954644,1771446645485,-259.193144,0.000142,2]